[Event "Schack-SM 2023: Mastarklassen-elit"]
[Site "Helsingborg Arena, Mellersta Stenbocksgatan 14, Helsingborg, Sweden"]
[Date "2023.07.07"]
[Round "7.1"]
[White "Lind, Jan-Olov"]
[Black "Crevatin, Leo"]
[Result "0-1"]
[TimeControl "90 minutes for 40 moves + 30 minutes for the rest of games + 30 seconds per move from move one."]
[BlackTitle "FM"]
[WhiteElo "2191"]
[BlackElo "2265"]

1. e4 {[%clk 01:30:48]} {[%emt 00:00:11]} c6 {[%clk 01:30:54]} {[%emt
00:00:07]} 2. d4 {[%clk 01:29:27]} {[%emt 00:01:51]} d5 {[%clk 01:31:20]}
{[%emt 00:00:04]} 3. exd5 {[%clk 01:29:45]} {[%emt 00:00:12]} cxd5 {[%clk
01:31:48]} {[%emt 00:00:02]} 4. c4 {[%clk 01:30:04]} {[%emt 00:00:11]} Nf6
{[%clk 01:32:14]} {[%emt 00:00:04]} 5. Nc3 {[%clk 01:30:21]} {[%emt 00:00:13]}
Nc6 {[%clk 01:32:37]} {[%emt 00:00:07]} 6. Bf4 {[%clk 01:30:21]} {[%emt
00:00:30]} g6 {[%clk 01:28:00]} {[%emt 00:05:06]} 7. Nb5 {[%clk 01:23:35]}
{[%emt 00:07:16]} e5 {[%clk 01:26:51]} {[%emt 00:01:40]} 8. dxe5 {[%clk
01:23:53]} {[%emt 00:00:13]} Bb4+ {[%clk 01:25:44]} {[%emt 00:01:36]} 9. Bd2
{[%clk 01:23:42]} {[%emt 00:00:41]} Bxd2+ {[%clk 01:24:07]} {[%emt 00:02:07]}
10. Qxd2 {[%clk 01:24:00]} {[%emt 00:00:12]} Nxe5 {[%clk 01:16:38]} {[%emt
00:08:00]} 11. Qb4 {[%clk 01:16:43]} {[%emt 00:07:47]} Qe7 {[%clk 00:57:18]}
{[%emt 00:19:49]} 12. Qxe7+ {[%clk 01:16:24]} {[%emt 00:00:49]} Kxe7 {[%clk
00:57:46]} {[%emt 00:00:02]} 13. Nc7 {[%clk 01:16:14]} {[%emt 00:00:40]} Rb8
{[%clk 00:57:43]} {[%emt 00:00:33]} 14. Nxd5+ {[%clk 01:14:53]} {[%emt
00:01:51]} Nxd5 {[%clk 00:58:08]} {[%emt 00:00:05]} 15. cxd5 {[%clk 01:15:14]}
{[%emt 00:00:09]} Bf5 {[%clk 00:49:37]} {[%emt 00:09:01]} 16. Rd1 {[%clk
00:57:10]} {[%emt 00:18:34]} Kd6 {[%clk 00:48:48]} {[%emt 00:01:19]} 17. Nf3
{[%clk 00:49:57]} {[%emt 00:07:42]} Rhe8 {[%clk 00:37:58]} {[%emt 00:11:20]} 18.
Kd2 {[%clk 00:48:33]} {[%emt 00:01:55]} Nxf3+ {[%clk 00:31:45]} {[%emt
00:06:44]} 19. gxf3 {[%clk 00:46:14]} {[%emt 00:02:48]} Rbc8 {[%clk 00:28:16]}
{[%emt 00:03:59]} 20. Bd3 {[%clk 00:45:01]} {[%emt 00:01:43]} Bxd3 {[%clk
00:28:09]} {[%emt 00:00:38]} 21. Kxd3 {[%clk 00:45:22]} {[%emt 00:00:08]} Rc5
{[%clk 00:27:03]} {[%emt 00:01:36]} 22. Rhe1 {[%clk 00:43:40]} {[%emt
00:02:12]} Rxe1 {[%clk 00:23:37]} {[%emt 00:03:56]} 23. Rxe1 {[%clk 00:44:01]}
{[%emt 00:00:09]} Rxd5+ {[%clk 00:24:03]} {[%emt 00:00:04]} 24. Kc3 {[%clk
00:41:46]} {[%emt 00:02:46]} Rh5 {[%clk 00:22:44]} {[%emt 00:01:48]} 25. Re8
{[%clk 00:37:05]} {[%emt 00:05:11]} Rxh2 {[%clk 00:21:48]} {[%emt 00:01:26]} 26.
Rb8 {[%clk 00:36:10]} {[%emt 00:01:25]} Rxf2 {[%clk 00:16:24]} {[%emt
00:05:53]} 27. Rxb7 {[%clk 00:36:28]} {[%emt 00:00:13]} Rxf3+ {[%clk 00:16:51]}
{[%emt 00:00:03]} 28. Kc4 {[%clk 00:28:26]} {[%emt 00:08:32]} a5 {[%clk
00:14:05]} {[%emt 00:03:16]} 29. Kb5 {[%clk 00:27:56]} {[%emt 00:00:59]} Rf5+
{[%clk 00:13:56]} {[%emt 00:00:40]} 30. Ka4 {[%clk 00:28:13]} {[%emt 00:00:13]}
Kc6 {[%clk 00:12:28]} {[%emt 00:01:57]} 31. Rb8 {[%clk 00:28:26]} {[%emt
00:00:18]} h5 {[%clk 00:11:27]} {[%emt 00:01:30]} 32. Rh8 {[%clk 00:27:18]}
{[%emt 00:01:39]} Rf2 {[%clk 00:05:21]} {[%emt 00:06:33]} 33. Kxa5 {[%clk
00:24:13]} {[%emt 00:03:39]} Rxb2 {[%clk 00:05:45]} {[%emt 00:00:06]} 34. a4
{[%clk 00:24:11]} {[%emt 00:00:32]} Kb7 {[%clk 00:01:44]} {[%emt 00:04:31]} 35.
Rxh5 {[%clk 00:22:26]} {[%emt 00:02:13]} Rf2 {[%clk 00:01:11]} {[%emt
00:01:03]} 36. Rg5 {[%clk 00:18:24]} {[%emt 00:04:33]} Rf6 {[%clk 00:01:00]}
{[%emt 00:00:40]} 37. Kb5 {[%clk 00:17:20]} {[%emt 00:01:35]} Rb6+ {[%clk
00:01:23]} {[%emt 00:00:07]} 38. Ka5 {[%clk 00:17:08]} {[%emt 00:00:42]} f5
{[%clk 00:01:24]} {[%emt 00:00:28]} 39. Rg1 {[%clk 00:17:03]} {[%emt 00:00:35]}
Rf6 {[%clk 00:01:04]} {[%emt 00:00:49]} 40. Rb1+ {[%clk 00:13:54]} {[%emt
00:03:40]} Kc7 {[%clk 00:00:52]} {[%emt 00:00:41]} 41. Rb6 {[%clk 00:13:35]}
{[%emt 00:00:50]} Rc6 {[%clk 00:21:25]} {[%emt 00:09:57]} 42. Rb1 {[%clk
00:38:25]} {[%emt 00:05:41]} f4 {[%clk 00:19:25]} {[%emt 00:02:30]} 43. Kb5
{[%clk 00:38:20]} {[%emt 00:00:35]} Rb6+ {[%clk 00:18:48]} {[%emt 00:01:07]}
0-1

[Event "Schack-SM 2023: Junior-SM"]
[Site "Helsingborg Arena, Mellersta Stenbocksgatan 14, Helsingborg, Sweden"]
[Date "2023.07.07"]
[Round "7.4"]
[White "Carlsson, Ludvig"]
[Black "Falkevall, Axel"]
[Result "1/2-1/2"]
[TimeControl "90 minutes for 40 moves + 30 minutes for the rest of the game + 30 seconds per move from move one."]
[WhiteTitle "IM"]
[BlackTitle "FM"]
[WhiteElo "2373"]
[BlackElo "2311"]

1. e4 {[%clk 01:30:56]} {[%emt 00:00:04]} e5 {[%clk 01:30:44]} {[%emt
00:00:17]} 2. Nf3 {[%clk 01:31:19]} {[%emt 00:00:07]} Nc6 {[%clk 01:31:05]}
{[%emt 00:00:09]} 3. Bb5 {[%clk 01:31:38]} {[%emt 00:00:11]} a6 {[%clk
01:31:23]} {[%emt 00:00:12]} 4. Ba4 {[%clk 01:32:02]} {[%emt 00:00:06]} Nf6
{[%clk 01:31:42]} {[%emt 00:00:10]} 5. O-O {[%clk 01:32:25]} {[%emt 00:00:07]}
Be7 {[%clk 01:32:03]} {[%emt 00:00:10]} 6. Re1 {[%clk 01:32:46]} {[%emt
00:00:09]} b5 {[%clk 01:32:19]} {[%emt 00:00:13]} 7. Bb3 {[%clk 01:33:11]}
{[%emt 00:00:05]} O-O {[%clk 01:32:20]} {[%emt 00:00:28]} 8. c3 {[%clk
01:33:22]} {[%emt 00:00:20]} d5 {[%clk 01:29:53]} {[%emt 00:02:58]} 9. exd5
{[%clk 01:33:38]} {[%emt 00:00:14]} Nxd5 {[%clk 01:30:19]} {[%emt 00:00:04]} 10.
Nxe5 {[%clk 01:34:01]} {[%emt 00:00:07]} Nxe5 {[%clk 01:30:45]} {[%emt
00:00:04]} 11. Rxe5 {[%clk 01:34:24]} {[%emt 00:00:07]} c6 {[%clk 01:31:12]}
{[%emt 00:00:04]} 12. d3 {[%clk 01:34:09]} {[%emt 00:00:44]} Bd6 {[%clk
01:31:34]} {[%emt 00:00:08]} 13. Re1 {[%clk 01:34:34]} {[%emt 00:00:05]} Bf5
{[%clk 01:31:39]} {[%emt 00:00:25]} 14. Qf3 {[%clk 01:34:50]} {[%emt 00:00:14]}
Re8 {[%clk 01:32:03]} {[%emt 00:00:05]} 15. Rxe8+ {[%clk 01:35:03]} {[%emt
00:00:18]} Qxe8 {[%clk 01:32:29]} {[%emt 00:00:04]} 16. Nd2 {[%clk 01:35:25]}
{[%emt 00:00:08]} Qe1+ {[%clk 01:32:44]} {[%emt 00:00:15]} 17. Nf1 {[%clk
01:35:50]} {[%emt 00:00:05]} Bg6 {[%clk 01:33:02]} {[%emt 00:00:12]} 18. g3
{[%clk 01:35:34]} {[%emt 00:00:46]} b4 {[%clk 01:30:43]} {[%emt 00:02:50]} 19.
c4 {[%clk 01:35:55]} {[%emt 00:00:09]} Nf6 {[%clk 01:31:08]} {[%emt 00:00:05]}
20. Qxc6 {[%clk 01:36:19]} {[%emt 00:00:06]} Rd8 {[%clk 01:31:34]} {[%emt
00:00:03]} 21. Qb6 {[%clk 01:36:44]} {[%emt 00:00:06]} Rd7 {[%clk 01:31:49]}
{[%emt 00:00:15]} 22. Bc2 {[%clk 01:36:26]} {[%emt 00:00:48]} Ng4 {[%clk
01:28:05]} {[%emt 00:04:13]} 23. Rb1 {[%clk 01:36:27]} {[%emt 00:00:30]} Qe2
{[%clk 01:27:26]} {[%emt 00:01:09]} 24. Bd2 {[%clk 01:36:49]} {[%emt 00:00:07]}
Ne5 {[%clk 01:27:27]} {[%emt 00:00:28]} 25. Qe3 {[%clk 01:37:13]} {[%emt
00:00:06]} Qh5 {[%clk 01:27:17]} {[%emt 00:00:40]} 26. Bd1 {[%clk 01:37:38]}
{[%emt 00:00:05]} Qf5 {[%clk 01:27:24]} {[%emt 00:00:23]} 27. c5 {[%clk
01:38:03]} {[%emt 00:00:06]} Bf8 {[%clk 01:26:23]} {[%emt 00:01:31]} 28. Be2
{[%clk 01:38:19]} {[%emt 00:00:14]} Nxd3 {[%clk 01:14:48]} {[%emt 00:12:05]} 29.
c6 {[%clk 01:28:56]} {[%emt 00:09:53]} Rc7 {[%clk 01:10:02]} {[%emt 00:05:16]}
30. Bxd3 {[%clk 01:28:21]} {[%emt 00:01:04]} Qxd3 {[%clk 01:10:17]} {[%emt
00:00:16]} 31. Rc1 {[%clk 01:28:21]} {[%emt 00:00:30]} Qd5 {[%clk 00:58:48]}
{[%emt 00:11:59]} 32. Qb6 {[%clk 01:25:45]} {[%emt 00:03:06]} Qf3 {[%clk
00:56:35]} {[%emt 00:02:44]} 33. Qe3 {[%clk 01:19:39]} {[%emt 00:06:36]} Be4
{[%clk 00:54:18]} {[%emt 00:02:47]} 34. Qxf3 {[%clk 01:20:02]} {[%emt
00:00:07]} Bxf3 {[%clk 00:54:45]} {[%emt 00:00:02]} 35. a3 {[%clk 01:18:24]}
{[%emt 00:02:09]} bxa3 {[%clk 00:52:24]} {[%emt 00:02:50]} 36. bxa3 {[%clk
01:18:45]} {[%emt 00:00:09]} Rxc6 {[%clk 00:51:57]} {[%emt 00:00:57]} 37. Rxc6
{[%clk 01:19:06]} {[%emt 00:00:09]} Bxc6 {[%clk 00:52:22]} {[%emt 00:00:05]} 38.
Bb4 {[%clk 01:19:27]} {[%emt 00:00:10]} g6 {[%clk 00:47:51]} {[%emt 00:05:00]}
39. Bxf8 {[%clk 01:17:54]} {[%emt 00:02:03]} Kxf8 {[%clk 00:48:15]} {[%emt
00:00:06]} 40. Ne3 {[%clk 01:17:57]} {[%emt 00:00:27]} Ke7 {[%clk 00:46:27]}
{[%emt 00:02:18]} 41. Kf1 {[%clk 01:18:09]} {[%emt 00:00:19]} Bb5+ {[%clk
00:44:33]} {[%emt 00:02:24]} 42. Ke1 {[%clk 01:18:31]} {[%emt 00:00:08]} Kd6
{[%clk 00:44:10]} {[%emt 00:00:52]} 43. Kd2 {[%clk 01:15:04]} {[%emt 00:03:57]}
Ke5 {[%clk 00:37:09]} {[%emt 00:07:32]} 44. Ng4+ {[%clk 01:10:11]} {[%emt
00:05:21]} Kd4 {[%clk 00:33:22]} {[%emt 00:04:18]} 45. h4 {[%clk 01:07:03]}
{[%emt 00:03:38]} h5 {[%clk 00:26:49]} {[%emt 00:07:03]} 46. Ne3 {[%clk
01:01:41]} {[%emt 00:05:52]} Ke4 {[%clk 00:25:10]} {[%emt 00:02:10]} 47. Nc2
{[%clk 01:01:32]} {[%emt 00:00:39]} f6 {[%clk 00:20:27]} {[%emt 00:05:13]} 48.
Ne1 {[%clk 01:01:38]} {[%emt 00:00:24]} Kd4 {[%clk 00:17:15]} {[%emt 00:03:41]}
49. Ng2 {[%clk 00:58:06]} {[%emt 00:04:01]} Bd7 {[%clk 00:12:39]} {[%emt
00:05:07]} 50. Nf4 {[%clk 00:57:52]} {[%emt 00:00:44]} Bf5 {[%clk 00:12:31]}
{[%emt 00:00:38]} 51. f3 {[%clk 00:57:20]} {[%emt 00:01:02]} Kc4 {[%clk
00:11:31]} {[%emt 00:01:30]} 52. g4 {[%clk 00:57:35]} {[%emt 00:00:14]} hxg4
{[%clk 00:11:09]} {[%emt 00:00:51]} 53. fxg4 {[%clk 00:58:01]} {[%emt
00:00:05]} Bxg4 {[%clk 00:10:23]} {[%emt 00:01:17]} 1/2-1/2

[Event "Schack-SM 2023: Sverigemastarklassen"]
[Site "Helsingborg Arena, Mellersta Stenbocksgatan 14, Helsingborg, Sweden"]
[Date "2023.07.07"]
[Round "7.3"]
[White "Kucuksari, Kaan"]
[Black "Hillarp Persson, Tiger"]
[Result "0-1"]
[TimeControl "90 minutes for 40 moves + 30 minutes for the rest of the game + 30 seconds per move from move one."]
[WhiteTitle "IM"]
[BlackTitle "GM"]
[WhiteFideId "6380166"]
[BlackFideId "1700812"]
[WhiteElo "2512"]
[BlackElo "2493"]

1. d4 {[%clk 01:30:58]} {[%emt 00:00:02]} e6 {[%clk 01:30:23]} {[%emt
00:00:38]} 2. Nf3 {[%clk 01:31:18]} {[%emt 00:00:10]} f5 {[%clk 01:30:33]}
{[%emt 00:00:19]} 3. g3 {[%clk 01:31:20]} {[%emt 00:00:28]} Nf6 {[%clk
01:30:55]} {[%emt 00:00:07]} 4. Bg2 {[%clk 01:31:48]} {[%emt 00:00:02]} d5
{[%clk 01:31:14]} {[%emt 00:00:11]} 5. O-O {[%clk 01:32:12]} {[%emt 00:00:06]}
Bd6 {[%clk 01:31:40]} {[%emt 00:00:04]} 6. c4 {[%clk 01:32:37]} {[%emt
00:00:05]} c6 {[%clk 01:31:59]} {[%emt 00:00:12]} 7. Nc3 {[%clk 01:31:24]}
{[%emt 00:01:43]} O-O {[%clk 01:31:54]} {[%emt 00:00:35]} 8. Bg5 {[%clk
01:31:39]} {[%emt 00:00:15]} h6 {[%clk 01:29:09]} {[%emt 00:03:14]} 9. Bf4
{[%clk 01:30:55]} {[%emt 00:01:15]} Bxf4 {[%clk 01:26:30]} {[%emt 00:03:09]} 10.
gxf4 {[%clk 01:29:21]} {[%emt 00:02:03]} Bd7 {[%clk 01:26:27]} {[%emt
00:00:33]} 11. Ne5 {[%clk 01:26:04]} {[%emt 00:03:47]} Be8 {[%clk 01:26:46]}
{[%emt 00:00:11]} 12. b4 {[%clk 01:25:15]} {[%emt 00:01:20]} Nbd7 {[%clk
01:25:11]} {[%emt 00:02:03]} 13. cxd5 {[%clk 01:23:06]} {[%emt 00:02:39]} cxd5
{[%clk 01:24:13]} {[%emt 00:01:28]} 14. Rc1 {[%clk 01:17:47]} {[%emt 00:05:49]}
Ne4 {[%clk 00:34:52]} {[%emt 00:49:51]} 15. Nxe4 {[%clk 01:08:19]} {[%emt
00:09:59]} fxe4 {[%clk 00:34:32]} {[%emt 00:00:49]} 16. Nxd7 {[%clk 01:08:29]}
{[%emt 00:00:21]} Bxd7 {[%clk 00:32:41]} {[%emt 00:02:20]} 17. e3 {[%clk
01:08:58]} {[%emt 00:00:02]} Bb5 {[%clk 00:26:44]} {[%emt 00:06:27]} 18. Re1
{[%clk 01:09:26]} {[%emt 00:00:02]} Qh4 {[%clk 00:24:39]} {[%emt 00:02:35]} 19.
Qc2 {[%clk 01:05:00]} {[%emt 00:04:57]} Bd3 {[%clk 00:20:48]} {[%emt 00:04:20]}
20. Qc7 {[%clk 01:04:16]} {[%emt 00:01:14]} Rf6 {[%clk 00:20:20]} {[%emt
00:00:57]} 21. Qe7 {[%clk 00:45:45]} {[%emt 00:19:01]} Rxf4 {[%clk 00:08:50]}
{[%emt 00:12:00]} 22. Qxh4 {[%clk 00:41:13]} {[%emt 00:05:03]} Rxh4 {[%clk
00:09:13]} {[%emt 00:00:06]} 23. Rc7 {[%clk 00:41:34]} {[%emt 00:00:08]} b5
{[%clk 00:07:42]} {[%emt 00:02:01]} 24. Rec1 {[%clk 00:40:39]} {[%emt
00:01:25]} Bc4 {[%clk 00:08:02]} {[%emt 00:00:11]} 25. Re7 {[%clk 00:40:03]}
{[%emt 00:01:06]} a5 {[%clk 00:08:26]} {[%emt 00:00:06]} 26. a3 {[%clk
00:33:31]} {[%emt 00:07:02]} axb4 {[%clk 00:08:28]} {[%emt 00:00:28]} 27. axb4
{[%clk 00:34:00]} {[%emt 00:00:02]} Ra6 {[%clk 00:08:31]} {[%emt 00:00:26]} 28.
h3 {[%clk 00:34:16]} {[%emt 00:00:13]} Rh5 {[%clk 00:08:55]} {[%emt 00:00:06]}
29. Rc2 {[%clk 00:34:25]} {[%emt 00:00:21]} Rf5 {[%clk 00:07:00]} {[%emt
00:02:24]} 30. Kh2 {[%clk 00:34:25]} {[%emt 00:00:31]} Kf8 {[%clk 00:06:46]}
{[%emt 00:00:44]} 31. Rb7 {[%clk 00:34:38]} {[%emt 00:00:17]} Rf7 {[%clk
00:06:51]} {[%emt 00:00:24]} 32. Rb8+ {[%clk 00:34:44]} {[%emt 00:00:25]} Ke7
{[%clk 00:07:10]} {[%emt 00:00:10]} 33. h4 {[%clk 00:35:05]} {[%emt 00:00:09]}
Kf6 {[%clk 00:04:40]} {[%emt 00:03:00]} 34. f3 {[%clk 00:34:19]} {[%emt
00:01:17]} exf3 {[%clk 00:04:51]} {[%emt 00:00:18]} 35. Rf2 {[%clk 00:34:00]}
{[%emt 00:00:49]} Raa7 {[%clk 00:03:16]} {[%emt 00:02:05]} 36. Re8 {[%clk
00:28:56]} {[%emt 00:05:35]} Rfe7 {[%clk 00:01:56]} {[%emt 00:01:50]} 37. Bxf3
{[%clk 00:26:59]} {[%emt 00:02:27]} Kg6 {[%clk 00:01:20]} {[%emt 00:01:06]} 38.
Rb8 {[%clk 00:22:02]} {[%emt 00:05:28]} Rf7 {[%clk 00:01:00]} {[%emt 00:00:49]}
39. Rg2+ {[%clk 00:06:04]} {[%emt 00:16:29]} Kh7 {[%clk 00:01:06]} {[%emt
00:00:24]} 40. Bh5 {[%clk 00:00:48]} {[%emt 00:05:46]} Rf6 {[%clk 00:01:27]}
{[%emt 00:00:08]} 41. Be8 {[%clk 00:01:10]} {[%emt 00:00:09]} Bd3 {[%clk
00:00:44]} {[%emt 00:01:12]} 42. h5 {[%clk 00:25:46]} {[%emt 00:05:54]} Be4
{[%clk 00:28:02]} {[%emt 00:03:11]} 43. Rxb5 {[%clk 00:25:12]} {[%emt
00:01:04]} Bxg2 {[%clk 00:28:04]} {[%emt 00:00:28]} 44. Kxg2 {[%clk 00:25:25]}
{[%emt 00:00:17]} Ra3 {[%clk 00:20:27]} {[%emt 00:08:07]} 45. Bg6+ {[%clk
00:24:14]} {[%emt 00:01:41]} Kg8 {[%clk 00:17:20]} {[%emt 00:03:36]} 46. e4
{[%clk 00:24:22]} {[%emt 00:00:23]} dxe4 {[%clk 00:16:41]} {[%emt 00:01:10]} 47.
Bxe4 {[%clk 00:24:50]} {[%emt 00:00:02]} Rf4 {[%clk 00:15:30]} {[%emt
00:01:40]} 48. Bg6 {[%clk 00:25:07]} {[%emt 00:00:14]} Kf8 {[%clk 00:15:32]}
{[%emt 00:00:27]} 49. Rb7 {[%clk 00:22:38]} {[%emt 00:03:00]} Rxd4 {[%clk
00:15:22]} {[%emt 00:00:39]} 50. b5 {[%clk 00:22:58]} {[%emt 00:00:11]} Rd2+
{[%clk 00:15:46]} {[%emt 00:00:05]} 0-1

[Event "Schack-SM 2023: Mastarklassen-elit"]
[Site "Helsingborg Arena, Mellersta Stenbocksgatan 14, Helsingborg, Sweden"]
[Date "2023.07.07"]
[Round "7.2"]
[White "Thorn, Eric"]
[Black "Olund, Joar"]
[Result "1-0"]
[TimeControl "90 minutes for 40 moves + 30 minutes for the rest of games + 30 seconds per move from move one."]
[WhiteTitle "FM"]
[BlackTitle "FM"]
[WhiteElo "2379"]
[BlackElo "2399"]

1. c4 {[%clk 01:30:56]} {[%emt 00:00:03]} c5 {[%clk 01:15:59]} {[%emt
00:15:02]} 2. Nf3 {[%clk 01:30:44]} {[%emt 00:00:42]} Nf6 {[%clk 01:15:35]}
{[%emt 00:00:55]} 3. Nc3 {[%clk 01:29:02]} {[%emt 00:02:11]} Nc6 {[%clk
01:14:21]} {[%emt 00:01:44]} 4. d4 {[%clk 01:22:06]} {[%emt 00:07:26]} cxd4
{[%clk 01:13:21]} {[%emt 00:01:30]} 5. Nxd4 {[%clk 01:22:06]} {[%emt 00:00:31]}
e6 {[%clk 01:13:00]} {[%emt 00:00:49]} 6. a3 {[%clk 01:21:42]} {[%emt
00:00:56]} Qb6 {[%clk 01:06:26]} {[%emt 00:07:03]} 7. Ndb5 {[%clk 01:13:39]}
{[%emt 00:08:34]} Bc5 {[%clk 00:45:06]} {[%emt 00:21:49]} 8. e3 {[%clk
01:12:29]} {[%emt 00:01:41]} Be7 {[%clk 00:45:17]} {[%emt 00:00:19]} 9. Nd6+
{[%clk 01:06:03]} {[%emt 00:06:56]} Bxd6 {[%clk 00:43:00]} {[%emt 00:02:45]} 10.
Qxd6 {[%clk 01:06:10]} {[%emt 00:00:25]} Na5 {[%clk 00:41:56]} {[%emt
00:01:34]} 11. Qxb6 {[%clk 01:01:31]} {[%emt 00:05:09]} axb6 {[%clk 00:41:00]}
{[%emt 00:01:26]} 12. Nb5 {[%clk 00:49:44]} {[%emt 00:12:16]} Kd8 {[%clk
00:36:01]} {[%emt 00:05:27]} 13. Bd2 {[%clk 00:47:04]} {[%emt 00:03:12]} Nb3
{[%clk 00:35:29]} {[%emt 00:01:01]} 14. Rd1 {[%clk 00:46:59]} {[%emt 00:00:36]}
Nxd2 {[%clk 00:35:57]} {[%emt 00:00:03]} 15. Rxd2 {[%clk 00:46:59]} {[%emt
00:00:30]} Ke7 {[%clk 00:34:04]} {[%emt 00:02:22]} 16. Be2 {[%clk 00:40:57]}
{[%emt 00:06:32]} d5 {[%clk 00:31:44]} {[%emt 00:02:49]} 17. cxd5 {[%clk
00:36:20]} {[%emt 00:05:08]} Nxd5 {[%clk 00:29:35]} {[%emt 00:02:39]} 18. Bf3
{[%clk 00:30:14]} {[%emt 00:06:36]} Ra5 {[%clk 00:25:23]} {[%emt 00:04:42]} 19.
Nd4 {[%clk 00:29:25]} {[%emt 00:01:19]} Nf6 {[%clk 00:21:28]} {[%emt 00:04:24]}
20. Ne2 {[%clk 00:21:27]} {[%emt 00:08:29]} Bd7 {[%clk 00:14:28]} {[%emt
00:07:30]} 21. Bxb7 {[%clk 00:19:18]} {[%emt 00:02:39]} Rb8 {[%clk 00:14:56]}
{[%emt 00:00:02]} 22. Bf3 {[%clk 00:19:40]} {[%emt 00:00:08]} b5 {[%clk
00:15:18]} {[%emt 00:00:09]} 23. Nc3 {[%clk 00:07:58]} {[%emt 00:12:10]} b4
{[%clk 00:14:23]} {[%emt 00:01:26]} 24. axb4 {[%clk 00:08:25]} {[%emt
00:00:03]} Rxb4 {[%clk 00:14:51]} {[%emt 00:00:02]} 25. O-O {[%clk 00:05:20]}
{[%emt 00:03:35]} Bc8 {[%clk 00:14:42]} {[%emt 00:00:39]} 26. Rc1 {[%clk
00:04:21]} {[%emt 00:01:29]} Bb7 {[%clk 00:14:38]} {[%emt 00:00:34]} 27. Ne2
{[%clk 00:02:18]} {[%emt 00:02:31]} Ke8 {[%clk 00:06:45]} {[%emt 00:08:25]} 28.
h3 {[%clk 00:00:36]} {[%emt 00:02:12]} Bxf3 {[%clk 00:05:44]} {[%emt 00:01:31]}
29. gxf3 {[%clk 00:01:05]} {[%emt 00:00:01]} Rg5+ {[%clk 00:02:31]} {[%emt
00:03:43]} 30. Kf1 {[%clk 00:01:13]} {[%emt 00:00:22]} Rd5 {[%clk 00:02:40]}
{[%emt 00:00:21]} 31. Rcc2 {[%clk 00:00:42]} {[%emt 00:01:01]} Rxd2 {[%clk
00:01:46]} {[%emt 00:01:24]} 32. Rxd2 {[%clk 00:01:10]} {[%emt 00:00:01]} Nd7
{[%clk 00:01:55]} {[%emt 00:00:22]} 33. Nd4 {[%clk 00:00:37]} {[%emt 00:01:03]}
Rb6 {[%clk 00:01:45]} {[%emt 00:00:41]} 34. f4 {[%clk 00:00:46]} {[%emt
00:00:20]} g6 {[%clk 00:01:44]} {[%emt 00:00:31]} 35. Rc2 {[%clk 00:00:43]}
{[%emt 00:00:33]} e5 {[%clk 00:01:07]} {[%emt 00:01:07]} 36. fxe5 {[%clk
00:01:07]} {[%emt 00:00:05]} Nxe5 {[%clk 00:01:36]} {[%emt 00:00:02]} 37. b3
{[%clk 00:01:03]} {[%emt 00:00:34]} Kd7 {[%clk 00:00:39]} {[%emt 00:01:27]} 38.
Ke2 {[%clk 00:00:56]} {[%emt 00:00:37]} g5 {[%clk 00:00:43]} {[%emt 00:00:25]}
39. Ra2 {[%clk 00:00:49]} {[%emt 00:00:37]} Rb7 {[%clk 00:00:32]} {[%emt
00:00:41]} 40. Ra5 {[%clk 00:00:44]} {[%emt 00:00:36]} Kd6 {[%clk 00:00:33]}
{[%emt 00:00:29]} 41. Nf5+ {[%clk 00:00:33]} {[%emt 00:00:41]} Ke6 {[%clk
00:00:53]} {[%emt 00:00:10]} 42. Nd4+ {[%clk 00:00:43]} {[%emt 00:00:19]} Kd6
{[%clk 00:00:44]} {[%emt 00:00:40]} 43. Ra6+ {[%clk 00:14:12]} {[%emt
00:17:01]} Ke7 {[%clk 00:28:42]} {[%emt 00:02:30]} 44. Rh6 {[%clk 00:12:43]}
{[%emt 00:02:00]} Ra7 {[%clk 00:28:13]} {[%emt 00:01:00]} 45. Rxh7 {[%clk
00:12:29]} {[%emt 00:00:44]} g4 {[%clk 00:26:49]} {[%emt 00:01:54]} 46. Kd2
{[%clk 00:04:47]} {[%emt 00:08:11]} Nf3+ {[%clk 00:22:36]} {[%emt 00:04:44]} 47.
Kd3 {[%clk 00:03:42]} {[%emt 00:01:34]} Ra2 {[%clk 00:22:59]} {[%emt 00:00:08]}
48. hxg4 {[%clk 00:02:12]} {[%emt 00:01:59]} Ne5+ {[%clk 00:22:44]} {[%emt
00:00:46]} 49. Kc3 {[%clk 00:01:03]} {[%emt 00:01:39]} Nxg4 {[%clk 00:22:55]}
{[%emt 00:00:19]} 50. Nf5+ {[%clk 00:00:48]} {[%emt 00:00:44]} Kf6 {[%clk
00:21:30]} {[%emt 00:01:55]} 51. f3 {[%clk 00:01:05]} {[%emt 00:00:14]} Nh2
{[%clk 00:17:41]} {[%emt 00:04:19]} 52. Nd4 {[%clk 00:01:19]} {[%emt 00:00:15]}
Nf1 {[%clk 00:16:55]} {[%emt 00:01:17]} 53. Nc2 {[%clk 00:01:30]} {[%emt
00:00:19]} Ra8 {[%clk 00:17:23]} {[%emt 00:00:02]} 54. Rh3 {[%clk 00:01:09]}
{[%emt 00:00:49]} Rd8 {[%clk 00:17:08]} {[%emt 00:00:46]} 55. b4 {[%clk
00:00:53]} {[%emt 00:00:47]} Rc8+ {[%clk 00:16:09]} {[%emt 00:01:29]} 56. Kd3
{[%clk 00:01:04]} {[%emt 00:00:18]} Rd8+ {[%clk 00:16:35]} {[%emt 00:00:05]} 57.
Nd4 {[%clk 00:01:02]} {[%emt 00:00:32]} Re8 {[%clk 00:16:17]} {[%emt 00:00:48]}
58. f4 {[%clk 00:00:40]} {[%emt 00:00:52]} Ra8 {[%clk 00:15:48]} {[%emt
00:00:59]} 59. Ke2 {[%clk 00:00:55]} {[%emt 00:00:15]} Ra1 {[%clk 00:16:17]}
{[%emt 00:00:02]} 60. b5 {[%clk 00:00:52]} {[%emt 00:00:32]} Ke7 {[%clk
00:16:45]} {[%emt 00:00:01]} 61. b6 {[%clk 00:00:48]} {[%emt 00:00:34]} Kd7
{[%clk 00:16:59]} {[%emt 00:00:17]} 62. Rh7 {[%clk 00:00:47]} {[%emt 00:00:31]}
Ng3+ {[%clk 00:16:37]} {[%emt 00:00:51]} 63. Kf3 {[%clk 00:01:15]} {[%emt
00:00:02]} Nf1 {[%clk 00:16:53]} {[%emt 00:00:14]} 64. Rxf7+ {[%clk 00:01:37]}
{[%emt 00:00:09]} Ke8 {[%clk 00:16:34]} {[%emt 00:00:49]} 65. Ra7 {[%clk
00:01:40]} {[%emt 00:00:27]} 1-0